fUSD/lending_fUSD_20240420
["ID","MTS","AMOUNT","RATE_DAILY","PERIOD"]
[323060782,1713621176767,-556.29,0.00020273,2]
[323060783,1713621176777,-1672.8,0.00020273,2]
[323060784,1713621176786,-1383.08,0.00020273,2]
[323060785,1713621176795,-905.55,0.00020273,2]
[323060786,1713621176805,-500.0,0.00020273,2]
[323060787,1713621176815,-500.0,0.00020273,2]
[323060788,1713621176824,-1271.86,0.00020273,2]
[323060789,1713621176834,-531.26,0.00020273,2]
[323060790,1713621176843,-858.15,0.00020273,2]
[323060791,1713621176854,-2102.91,0.00020273,2]
[323060792,1713621176864,-2051.78,0.00020273,2]
[323060793,1713621176873,-495.25,0.00020273,2]
[323060794,1713621176883,-888.43,0.00020273,2]
[323060795,1713621176892,-547.06,0.00020273,2]
[323060796,1713621176902,-1220.03,0.00020273,2]
[323060797,1713621176911,-1428.28,0.00020273,2]
[323060798,1713621176921,-1590.37,0.00020273,2]
[323060799,1713621176931,-640.38,0.00020273,2]
[323060800,1713621176941,-621.99,0.00020273,2]
[323060801,1713621176950,-1132.15,0.00020273,2]
[323060802,1713621176960,-1083.02,0.00020273,2]
[323060803,1713621176970,-912.32,0.00020273,2]
[323060804,1713621176980,-1323.41,0.00020273,2]
[323060805,1713621176989,-590.76,0.00020273,2]
[323060806,1713621176998,-827.0,0.00020273,2]
[323060807,1713621177009,-720.61,0.00020273,2]
[323060808,1713621177018,-1207.81,0.00020273,2]
[323060809,1713621177027,-1649.09,0.00020273,2]
[323060810,1713621177037,-3308.96,0.00020273,2]
[323060811,1713621177046,-972.02,0.00020273,2]
[323060812,1713621177056,-500.0,0.00020273,2]
[323060813,1713621177066,-500.0,0.00020273,2]
[323060814,1713621177075,-1214.04,0.00020273,2]
[323060815,1713621177084,-803.54,0.00020273,2]
[323060816,1713621177094,-1303.19,0.00020273,2]
[323060817,1713621177103,-3936.85,0.00020273,2]
[323060818,1713621177112,-586.97,0.00020273,2]
[323060819,1713621177121,-599.69,0.00020273,2]
[323060820,1713621177131,-1031.32,0.00020273,2]
[323060821,1713621177140,-789.55,0.00020273,2]
[323060822,1713621177150,-1204.32,0.00020273,2]
[323060823,1713621177159,-500.0,0.00020273,2]
[323060824,1713621177169,-702.73,0.00020273,2]
[323060825,1713621177177,-516.52,0.00020273,2]
[323060826,1713621177187,-3310.74,0.00020273,2]
[323060827,1713621177196,-500.0,0.00020273,2]
[323060828,1713621177206,-2883.58,0.00020273,2]
[323060829,1713621177214,-1816.08,0.00020273,2]
[323060830,1713621177224,-585.36,0.00020273,2]
[323060831,1713621177234,-855.47,0.00020273,2]
[323060832,1713621177243,-534.99,0.00020273,2]
[323060833,1713621177252,-25055.79,0.00020273,2]
[323060834,1713621177261,-1302.76,0.00020273,2]
[323060835,1713621177271,-1460.91,0.00020273,2]
[323060836,1713621177280,-11346.84,0.00020273,2]
[323060837,1713621177289,-2836.68,0.00020273,2]
[323060838,1713621177298,-604.68,0.00020273,2]
[323060839,1713621177312,-2104.73,0.00020273,2]
[323060840,1713621177321,-2073.42,0.00020273,2]
[323060841,1713621177330,-1526.62,0.00020273,2]
[323060842,1713621177341,-500.0,0.00020273,2]
[323060843,1713621177351,-1538.77,0.00020273,2]
[323060844,1713621177360,-17543.18,0.00020273,2]
[323060845,1713621177370,-500.0,0.00020273,2]
[323060846,1713621177381,-500.0,0.00020273,2]
[323060847,1713621177390,-4660.49,0.00020273,2]
[323060848,1713621177400,-2699.08,0.00020273,2]
[323060849,1713621177409,-1179.82,0.00020273,2]
[323060850,1713621177419,-581.88,0.00020273,2]
[323060851,1713621177428,-2419.34,0.00020273,2]
[323060852,1713621177438,-500.0,0.00020273,2]
[323060853,1713621177447,-1491.91,0.00020273,2]
[323060854,1713621177456,-1046.7,0.00020273,2]
[323060855,1713621177466,-929.27,0.00020273,2]
[323060856,1713621177475,-1397.79,0.00020273,2]
[323060857,1713621177484,-2207.26,0.00020273,2]
[323060858,1713621177494,-983.83,0.00020273,2]
[323060859,1713621177502,-5291.84,0.00020273,2]
[323060860,1713621177512,-584.35,0.00020273,2]
[323060861,1713621177521,-689.72,0.00020273,2]
[323060862,1713621177530,-2126.15,0.00020273,2]
[323060863,1713621177539,-3579.93,0.00020273,2]
[323060864,1713621177548,-873.88,0.00020273,2]
[323060865,1713621177557,-820.73,0.00020273,2]
[323060866,1713621177568,-2569.48,0.00020273,2]
[323060867,1713621177577,-5218.13,0.00020273,2]
[323060868,1713621177587,-987.0,0.00020273,2]
[323060869,1713621177596,-20114.69,0.00020273,2]
[323060870,1713621177606,-893.57,0.00020273,2]
[323060871,1713621177615,-637.43,0.00020273,2]
[323060872,1713621177623,-1731.18,0.00020273,2]
[323060873,1713621177633,-1285.12,0.00020273,2]
[323060874,1713621177642,-1109.59,0.00020273,2]
[323060875,1713621177651,-1096.27,0.00020273,2]
[323060876,1713621177661,-500.0,0.00020273,2]
[323060877,1713621177671,-725.21,0.00020273,2]
[323060878,1713621177680,-1089.81,0.00020273,2]
[323060879,1713621177689,-508.71,0.00020273,2]
[323060880,1713621177699,-500.0,0.00020273,2]
[323060881,1713621177709,-500.0,0.00020273,2]
[323060882,1713621177719,-1517.58,0.00020273,2]
[323060883,1713621177728,-520.08,0.00020273,2]
[323060884,1713621177738,-1955.1,0.00020273,2]
[323060885,1713621177747,-967.39,0.00020273,2]
[323060886,1713621177757,-620.62,0.00020273,2]
[323060887,1713621177766,-1531.19,0.00020273,2]
[323060888,1713621177776,-747.89,0.00020273,2]
[323060889,1713621177785,-7480.38,0.00020273,2]
[323060890,1713621177794,-1894.49,0.00020273,2]
[323060891,1713621177803,-873.58,0.00020273,2]
[323060892,1713621177814,-219.93381848,0.00020273,2]
[323060893,1713621177823,-1993.22,0.00020273,2]
[323060894,1713621177832,-880.45,0.00020273,2]
[323060895,1713621177841,-1085.31,0.00020273,2]
[323060896,1713621177850,-500.0,0.00020273,2]
[323060897,1713621177860,-2753.72,0.00020273,2]
[323060898,1713621177869,-500.0,0.00020273,2]
[323060899,1713621177878,-1162.41,0.00020273,2]
[323060900,1713621177887,-2731.21,0.00020273,2]
[323060901,1713621177896,-1954.97,0.00020273,2]
[323060902,1713621177906,-2627.79,0.00020273,2]
[323060903,1713621177915,-794.92,0.00020273,2]
[323060904,1713621177925,-1013.89,0.00020273,2]
[323060905,1713621177934,-1131.55,0.00020273,2]
[323060906,1713621177943,-622.04,0.00020273,2]
[323060907,1713621177952,-1320.88,0.00020273,2]
[323060908,1713621177961,-1413.35,0.00020273,2]
[323060909,1713621177971,-500.0,0.00020273,2]
[323060910,1713621177980,-500.0,0.00020273,2]
[323060911,1713621177988,-2346.4,0.00020273,2]
[323060912,1713621177997,-563.88,0.00020273,2]
[323060913,1713621178006,-803.26,0.00020273,2]
[323060914,1713621178015,-2292.01,0.00020273,2]
[323060915,1713621178024,-831.92,0.00020273,2]
[323060916,1713621178033,-500.0,0.00020273,2]
[323060917,1713621178044,-5369.64,0.00020273,2]
[323060918,1713621178053,-1128.04,0.00020273,2]
[323060919,1713621178064,-3431.1,0.00020273,2]
[323060920,1713621178073,-680.01,0.00020273,2]
[323060921,1713621178082,-2676.86,0.00020273,2]
[323060922,1713621178091,-546.08,0.00020273,2]
[323060923,1713621178101,-727.28,0.00020273,2]
[323060924,1713621178110,-2216.75,0.00020273,2]
[323060925,1713621178120,-823.84,0.00020273,2]
[323060926,1713621178129,-1588.82,0.00020273,2]
[323060927,1713621178138,-841.25,0.00020273,2]
[323060928,1713621178148,-1811.35,0.00020273,2]
[323060929,1713621178158,-866.08,0.00020273,2]
[323060930,1713621178168,-906.35,0.00020273,2]
[323060931,1713621178178,-1171.0,0.00020273,2]
[323060932,1713621178187,-3500.27,0.00020273,2]
[323060933,1713621178196,-506.37,0.00020273,2]
[323060934,1713621178206,-1349.52,0.00020273,2]
[323060935,1713621178215,-2730.13,0.00020273,2]
[323060936,1713621178225,-4084.13,0.00020273,2]
[323060937,1713621178234,-1215.96,0.00020273,2]
[323060938,1713621178244,-570.63,0.00020273,2]
[323060939,1713621178253,-1517.62,0.00020273,2]
[323060940,1713621178262,-2492.62,0.00020273,2]
[323060941,1713621178272,-1694.66,0.00020273,2]
[323060942,1713621178281,-589.63,0.00020273,2]
[323060943,1713621178290,-1038.52,0.00020273,2]
[323060944,1713621178302,-500.0,0.00020273,2]
[323060945,1713621178312,-544.68,0.00020273,2]
[323060946,1713621178321,-745.95,0.00020273,2]
[323060947,1713621178331,-2146.81,0.00020273,2]
[323060948,1713621178341,-12863.04,0.00020273,2]
[323060949,1713621178350,-872.9,0.00020273,2]
[323060950,1713621178360,-1580.69,0.00020273,2]
[323060951,1713621178369,-2481.94,0.00020273,2]
[323060952,1713621178380,-2416.85,0.00020273,2]
[323060953,1713621178390,-517.67,0.00020273,2]
[323060954,1713621178399,-716.61,0.00020273,2]
[323060955,1713621178408,-607.93,0.00020273,2]
[323060956,1713621178417,-500.0,0.00020273,2]
[323060957,1713621178427,-698.46,0.00020273,2]
[323060958,1713621178435,-1176.49,0.00020273,2]
[323060959,1713621178445,-1895.23,0.00020273,2]
[323060960,1713621178454,-2366.37,0.00020273,2]
[323060961,1713621178464,-834.84,0.00020273,2]
[323060962,1713621178473,-500.0,0.00020273,2]
[323060963,1713621178482,-1264.42,0.00020273,2]
[323060964,1713621178491,-1525.57,0.00020273,2]
[323060965,1713621178501,-1200.1,0.00020273,2]
[323060966,1713621178510,-500.0,0.00020273,2]
[323060967,1713621178519,-3734.56,0.00020273,2]
[323060968,1713621178528,-735.18,0.00020273,2]
[323060969,1713621178538,-2596.31,0.00020273,2]
[323060970,1713621178548,-1983.17,0.00020273,2]
[323060971,1713621178558,-685.33,0.00020273,2]
[323060972,1713621178569,-1892.67,0.00020273,2]
[323060973,1713621178578,-794.67,0.00020273,2]
[323060974,1713621178587,-698.53,0.00020273,2]
[323060975,1713621178596,-2762.86,0.00020273,2]
[323060976,1713621178605,-4314.41,0.00020273,2]
[323060977,1713621178615,-500.0,0.00020273,2]
[323060978,1713621178624,-928.74,0.00020273,2]
[323060979,1713621178634,-556.39,0.00020273,2]
[323060980,1713621178643,-704.33,0.00020273,2]
[323060981,1713621178653,-4750.03,0.00020273,2]
[323060982,1713621178662,-500.0,0.00020273,2]
[323060983,1713621178672,-6352.14,0.00020273,2]
[323060984,1713621178681,-554.92,0.00020273,2]
[323060985,1713621178690,-1612.53,0.00020273,2]
[323060986,1713621178699,-1323.32,0.00020273,2]
[323060987,1713621178709,-1230.53,0.00020273,2]
[323060988,1713621178718,-3222.01,0.00020273,2]
[323060989,1713621178727,-5730.53,0.00020273,2]
[323060990,1713621178737,-1237.83,0.00020273,2]
[323060991,1713621178746,-801.29,0.00020273,2]
[323060992,1713621178755,-8896.9,0.00020273,2]
[323060993,1713621178764,-1250.13,0.00020273,2]
[323060994,1713621178773,-21516.91,0.00020273,2]
[323060995,1713621178782,-1238.37,0.00020273,2]
[323060996,1713621178792,-736.180461,0.00020274,2]
[323060997,1713621178801,-152.0,0.00020277,11]
[323060998,1713621178810,-150.0,0.00020291,2]
[323060999,1713621178820,-155.94518818,0.00020292,2]
[323061000,1713621178829,-150.0,0.00020297,2]
[323061001,1713621178838,-398.9809619,0.00020301,10]
[323061002,1713621178847,-323.69729488,0.00020301,10]
[323061003,1713621178856,-155.94518818,0.00020305,2]
[323061004,1713621178865,-2961.93698053,0.00020305,2]
[323061005,1713621178876,-154.72199494,0.00020318,2]
[323061006,1713621178886,-150.0,0.00020323,2]
[323061007,1713621178895,-335303.999999,0.0002033,2]
[323061008,1713621178904,-432.20700905,0.00020332,2]
[323061009,1713621178914,-2961.93698053,0.00020337,2]
[323061010,1713621178923,-155.94518818,0.00020362,2]
[323061011,1713621178932,-196.14867662,0.00020372,2]
[323061012,1713621178942,-159.27902882,0.00020379,2]
[323061013,1713621178951,-398.9809619,0.00020384,10]
[323061014,1713621178960,-323.69729488,0.00020384,10]
[323061015,1713621178969,-432.20700905,0.00020394,2]
[323061016,1713621178978,-166.66666667,0.00020394,2]
[323061017,1713621178987,-6998.7920309,0.000204,2]
[323061018,1713621178996,-150.0,0.000204,2]
[323061019,1713621179005,-150.0,0.00020404,2]
[323061020,1713621179014,-740.0,0.00020411,2]
[323061021,1713621179023,-162.63,0.00020413,2]
[323061022,1713621179032,-285.0,0.0002042,2]
[323061023,1713621179041,-211.58829794,0.00020428,2]
[323061024,1713621179050,-15065.8445,0.0002044,4]
[323061025,1713621179060,-150.0,0.00020445,2]
[323061026,1713621179069,-150.0,0.00020454,2]
[323061027,1713621179078,-398.9809619,0.00020466,10]
[323061028,1713621179088,-178.05391167,0.00020466,10]
[323061029,1713621179097,-323.69729488,0.00020466,10]
[323061030,1713621179106,-229.36882153,0.00020466,10]
[323061031,1713621179115,-218.85488545,0.00020473,2]
[323061032,1713621179124,-150.0,0.00020476,2]
[323061033,1713621179134,-154.98058797,0.00020486,2]
[323061034,1713621179143,-1000.0,0.000205,2]
[323061035,1713621179152,-632.96859625,0.000205,2]
[323061036,1713621179161,-150.0,0.000205,2]
[323061037,1713621179171,-151.14144813,0.000205,2]
[323061038,1713621179181,-2308.925018,0.000205,2]
[323061039,1713621179190,-150.0,0.00020504,2]
[323061040,1713621179199,-206.65259777,0.00020516,2]
[323061041,1713621179208,-159.54470878,0.00020528,2]
[323061042,1713621179217,-1500.0,0.00020532,2]
[323061043,1713621179226,-150.0,0.00020533,2]
[323061044,1713621179236,-995.78,0.00020535,2]
[323061045,1713621179245,-150.0,0.00020543,2]
[323061046,1713621179255,-1039.36,0.00020547,2]
[323061047,1713621179266,-635.04,0.00020547,2]
[323061048,1713621179275,-639.54,0.00020547,2]
[323061049,1713621179284,-852.82,0.00020547,2]
[323061050,1713621179293,-654.32,0.00020547,2]
[323061051,1713621179302,-502.56,0.00020547,2]
[323061052,1713621179314,-611.35,0.00020547,2]
[323061053,1713621179323,-735.88,0.00020547,2]
[323061054,1713621179332,-717.35,0.00020547,2]
[323061055,1713621179341,-500.0,0.00020547,2]
[323061056,1713621179350,-539.29,0.00020547,2]
[323061057,1713621179359,-569.73,0.00020547,2]
[323061058,1713621179368,-827.03,0.00020547,2]
[323061059,1713621179377,-500.0,0.00020547,2]
[323061060,1713621179386,-637.21,0.00020547,2]
[323061061,1713621179395,-579.7,0.00020547,2]
[323061062,1713621179404,-969.36,0.00020547,2]
[323061063,1713621179413,-781.94,0.00020547,2]
[323061064,1713621179422,-667.13,0.00020547,2]
[323061065,1713621179431,-500.0,0.00020547,2]
[323061066,1713621179440,-500.0,0.00020547,2]
[323061067,1713621179450,-770.44,0.00020547,2]
[323061068,1713621179459,-1099.12,0.00020547,2]
[323061069,1713621179468,-597.89,0.00020547,2]
[323061070,1713621179477,-500.0,0.00020547,2]
[323061071,1713621179487,-522.54,0.00020547,2]
[323061072,1713621179497,-500.0,0.00020547,2]
[323061073,1713621179505,-532.55,0.00020547,2]
[323061074,1713621179515,-618.57,0.00020547,2]
[323061075,1713621179524,-737.86,0.00020547,2]
[323061076,1713621179534,-515.87,0.00020547,2]
[323061077,1713621179543,-912.68,0.00020547,2]
[323061078,1713621179551,-500.0,0.00020547,2]
[323061079,1713621179561,-860.75,0.00020547,2]
[323061080,1713621179570,-500.0,0.00020547,2]
[323061081,1713621179580,-702.21,0.00020547,2]
[323061082,1713621179589,-821.61,0.00020547,2]
[323061083,1713621179598,-821.76,0.00020547,2]
[323061084,1713621179608,-500.0,0.00020547,2]
[323061085,1713621179617,-940.84,0.00020547,2]
[323061086,1713621179626,-500.0,0.00020547,2]
[323061087,1713621179635,-863.56,0.00020547,2]
[323061088,1713621179644,-1083.21,0.00020547,2]
[323061089,1713621179653,-1649.11,0.00020547,2]
[323061090,1713621179663,-484.10603779,0.00020547,2]
[323061091,1713621179672,-933.2,0.00020547,2]
[323061092,1713621179682,-1738.53,0.00020547,2]
[323061093,1713621179691,-500.0,0.00020547,2]
[323061094,1713621179701,-500.0,0.00020547,2]
[323061095,1713621179710,-641.19,0.00020547,2]
[323061096,1713621179720,-546.2,0.00020547,2]
[323061097,1713621179730,-669.09,0.00020547,2]
[323061098,1713621179739,-538.48,0.00020547,2]
[323061099,1713621179748,-1472.9,0.00020547,2]
[323061100,1713621179758,-526.85,0.00020547,2]
[323061101,1713621179768,-633.05,0.00020547,2]
[323061102,1713621179778,-679.04,0.00020547,2]
[323061103,1713621179788,-889.7,0.00020547,2]
[323061104,1713621179797,-749.34,0.00020547,2]
[323061105,1713621179807,-614.66,0.00020547,2]
[323061106,1713621179817,-669.86,0.00020547,2]
[323061107,1713621179826,-627.14,0.00020547,2]
[323061108,1713621179835,-887.51,0.00020547,2]
[323061109,1713621179845,-595.2,0.00020547,2]
[323061110,1713621179854,-712.4,0.00020547,2]
[323061111,1713621179864,-583.86,0.00020547,2]
[323061112,1713621179873,-714.19,0.00020547,2]
[323061113,1713621179882,-654.49,0.00020547,2]
[323061114,1713621179892,-500.0,0.00020547,2]
[323061115,1713621179902,-543.54,0.00020547,2]
[323061116,1713621179912,-856.07,0.00020547,2]
[323061117,1713621179922,-519.9,0.00020547,2]
[323061118,1713621179931,-1382.29,0.00020547,2]
[323061119,1713621179942,-704.01,0.00020547,2]
[323061120,1713621179952,-778.05,0.00020547,2]
[323061121,1713621179962,-943.86,0.00020547,2]
[323061122,1713621179972,-533.87,0.00020547,2]
[323061123,1713621179982,-1206.79,0.00020547,2]
[323061124,1713621179992,-864.0,0.00020547,2]
[323061125,1713621180001,-871.35,0.00020547,2]
[323061126,1713621180011,-581.68,0.00020547,2]
[323061127,1713621180021,-998.69,0.00020547,2]
[323061128,1713621180032,-580.51,0.00020547,2]
[323061129,1713621180041,-564.88,0.00020547,2]
[323061130,1713621180051,-777.99,0.00020547,2]
[323061131,1713621180060,-566.7,0.00020547,2]
[323061132,1713621180071,-922.4,0.00020547,2]
[323061133,1713621180080,-772.56,0.00020547,2]
[323061134,1713621180089,-741.19,0.00020547,2]
[323061135,1713621180099,-510.23,0.00020547,2]
[323061136,1713621180108,-500.0,0.00020547,2]
[323061137,1713621180117,-1301.99,0.00020547,2]
[323061138,1713621180126,-1011.91,0.00020547,2]
[323061139,1713621180136,-729.34,0.00020547,2]
[323061140,1713621180145,-598.99,0.00020547,2]
[323061141,1713621180154,-590.27,0.00020547,2]
[323061142,1713621180255,-403.26061923,0.00020547,2]
[323061143,1713621180291,-983.5,0.00020547,2]
[323061144,1713621180304,-500.0,0.00020547,2]
[323061145,1713621180317,-548.09863397,0.00020547,2]
[323061146,1713621180327,-829.71,0.00020547,2]
[323061147,1713621180337,-605.59,0.00020547,2]
[323061148,1713621180347,-1243.7,0.00020547,2]
[323061149,1713621180357,-1886.34,0.00020547,2]
[323061150,1713621180368,-685.34,0.00020547,2]
[323061151,1713621180378,-550.49829573,0.00020547,2]
[323061152,1713621180392,-549.94816963,0.00020547,2]
[323061153,1713621180402,-500.0,0.00020547,2]
[323061154,1713621180413,-612.53,0.00020547,2]
[323061155,1713621180423,-723.5,0.00020547,2]
[323061156,1713621180433,-730.92,0.00020547,2]
[323061157,1713621180443,-621.81824898,0.00020547,2]
[323061158,1713621180453,-1025.52,0.00020547,2]
[323061159,1713621180463,-1486.68,0.00020547,2]
[323061160,1713621180473,-378.20164453,0.00020547,2]
[323061161,1713621180483,-970.1,0.00020547,2]
[323061162,1713621180494,-500.0,0.00020547,2]
[323061163,1713621180503,-600.76,0.00020547,2]
[323061164,1713621180513,-580.95,0.00020547,2]
[323061165,1713621180523,-775.5,0.00020547,2]
[323061166,1713621180533,-1195.92,0.00020547,2]
[323061167,1713621180544,-971.12,0.00020547,2]
[323061168,1713621180554,-558.98,0.00020547,2]
[323061169,1713621180565,-751.59,0.00020547,2]
[323061170,1713621180574,-1627.69,0.00020547,2]
[323061171,1713621180585,-1693.65,0.00020547,2]
[323061172,1713621180595,-500.0,0.00020547,2]
[323061173,1713621180604,-964.32,0.00020547,2]
[323061174,1713621180614,-712.6,0.00020547,2]
[323061175,1713621180623,-611.81,0.00020547,2]
[323061176,1713621180633,-1500.36,0.00020547,2]
[323061177,1713621180643,-630.97,0.00020547,2]
[323061178,1713621180652,-1123.09,0.00020547,2]
[323061179,1713621180662,-500.0,0.00020547,2]
[323061180,1713621180671,-1122.67,0.00020547,2]
[323061181,1713621180681,-571.83,0.00020547,2]
[323061182,1713621180691,-959.94,0.00020547,2]
[323061183,1713621180701,-666.18,0.00020547,2]
[323061184,1713621180711,-717.02,0.00020547,2]
[323061185,1713621180721,-500.0,0.00020547,2]
[323061186,1713621180731,-656.38,0.00020547,2]
[323061187,1713621180741,-672.57,0.00020547,2]
[323061188,1713621180750,-500.0,0.00020547,2]
[323061189,1713621180760,-817.63,0.00020547,2]
[323061190,1713621180770,-748.28,0.00020547,2]
[323061191,1713621180780,-1401.32,0.00020547,2]
[323061192,1713621180789,-1699.19,0.00020547,2]
[323061193,1713621180799,-1021.58,0.00020547,2]
[323061194,1713621180809,-2008.01,0.00020547,2]
[323061195,1713621180819,-502.08,0.00020547,2]
[323061196,1713621180829,-623.84,0.00020547,2]
[323061197,1713621180839,-556.29,0.00020547,2]
[323061198,1713621180848,-1672.8,0.00020547,2]
[323061199,1713621180858,-1383.08,0.00020547,2]
[323061200,1713621180867,-905.55,0.00020547,2]
[323061201,1713621180877,-500.0,0.00020547,2]
[323061202,1713621180887,-214.42801051,0.00020547,2]
[323061203,1713621180897,-1271.86,0.00020547,2]
[323061204,1713621180906,-858.15,0.00020547,2]
[323061205,1713621180916,-531.26,0.00020547,2]
[323061206,1713621180926,-2102.91,0.00020547,2]
[323061207,1713621180936,-2051.78,0.00020547,2]
[323061208,1713621180946,-495.25,0.00020547,2]
[323061209,1713621180956,-888.43,0.00020547,2]
[323061210,1713621180966,-547.06,0.00020547,2]
[323061211,1713621180975,-1220.03,0.00020547,2]
[323061212,1713621180985,-1428.28,0.00020547,2]
[323061213,1713621180995,-1590.37,0.00020547,2]
[323061214,1713621181005,-640.38,0.00020547,2]
[323061215,1713621181015,-621.99,0.00020547,2]
[323061216,1713621181024,-1132.15,0.00020547,2]
[323061217,1713621181034,-1083.02,0.00020547,2]
[323061218,1713621181043,-912.32,0.00020547,2]
[323061219,1713621181053,-1323.41,0.00020547,2]
[323061220,1713621181062,-590.76,0.00020547,2]
[323061221,1713621181073,-827.0,0.00020547,2]
[323061222,1713621181083,-720.61,0.00020547,2]
[323061223,1713621181092,-1207.81,0.00020547,2]
[323061224,1713621181101,-1649.09,0.00020547,2]
[323061225,1713621181111,-3308.96,0.00020547,2]
[323061226,1713621181121,-972.02,0.00020547,2]
[323061227,1713621181130,-500.0,0.00020547,2]
[323061228,1713621181140,-500.0,0.00020547,2]
[323061229,1713621181149,-1214.04,0.00020547,2]
[323061230,1713621181158,-803.54,0.00020547,2]
[323061231,1713621181167,-1303.19,0.00020547,2]
[323061232,1713621181177,-3936.85,0.00020547,2]
[323061233,1713621181187,-586.97,0.00020547,2]
[323061234,1713621181197,-599.69,0.00020547,2]
[323061235,1713621181206,-1031.32,0.00020547,2]
[323061236,1713621181216,-789.55,0.00020547,2]
[323061237,1713621181225,-1204.32,0.00020547,2]
[323061238,1713621181235,-189.45014861,0.00020547,2]
[323061239,1713621181245,-702.73,0.00020547,2]
[323061240,1713621181254,-516.52,0.00020547,2]
[323061241,1713621181264,-3310.74,0.00020547,2]
[323061242,1713621181273,-646.59022533,0.00020547,2]
[323061243,1713621181283,-2883.58,0.00020547,2]
[323061244,1713621181293,-1816.08,0.00020547,2]
[323061245,1713621181305,-585.36,0.00020547,2]
[323061246,1713621181317,-855.47,0.00020547,2]
[323061247,1713621181327,-534.99,0.00020547,2]
[323061248,1713621181336,-25055.79,0.00020547,2]
[323061249,1713621181347,-1302.76,0.00020547,2]
[323061250,1713621181356,-1460.91,0.00020547,2]
[323061251,1713621181366,-11346.84,0.00020547,2]
[323061252,1713621181375,-2836.68,0.00020547,2]
[323061253,1713621181386,-604.68,0.00020547,2]
[323061254,1713621181395,-2104.73,0.00020547,2]
[323061255,1713621181405,-2073.42,0.00020547,2]
[323061256,1713621181414,-1526.62,0.00020547,2]
[323061257,1713621181424,-500.0,0.00020547,2]
[323061258,1713621181433,-1538.77,0.00020547,2]
[323061259,1713621181443,-17543.18,0.00020547,2]
[323061260,1713621181452,-500.0,0.00020547,2]
[323061261,1713621181462,-595.8997801,0.00020547,2]
[323061262,1713621181472,-4660.49,0.00020547,2]
[323061263,1713621181482,-2699.08,0.00020547,2]
[323061264,1713621181491,-1179.82,0.00020547,2]
[323061265,1713621181501,-581.88,0.00020547,2]
[323061266,1713621181510,-2419.34,0.00020547,2]
[323061267,1713621181520,-500.0,0.00020547,2]
[323061268,1713621181529,-1491.91,0.00020547,2]
[323061269,1713621181538,-1046.7,0.00020547,2]
[323061270,1713621181546,-929.27,0.00020547,2]
[323061271,1713621181556,-1397.79,0.00020547,2]
[323061272,1713621181568,-983.83,0.00020547,2]
[323061273,1713621181577,-5291.84,0.00020547,2]
[323061274,1713621181586,-2207.26,0.00020547,2]
[323061275,1713621181595,-584.35,0.00020547,2]
[323061276,1713621181604,-689.72,0.00020547,2]
[323061277,1713621181614,-2126.15,0.00020547,2]
[323061278,1713621181623,-3579.93,0.00020547,2]
[323061279,1713621181632,-873.88,0.00020547,2]
[323061280,1713621181641,-2569.48,0.00020547,2]
[323061281,1713621181651,-820.73,0.00020547,2]